fUST/lending_fUST_20241112
["ID","MTS","AMOUNT","RATE_DAILY","PERIOD"]
[342086799,1731426500682,-134.93812947,0.00022191,7]
[342086800,1731426500693,-16.06187053,0.00022191,7]
[342086801,1731426500703,-151.0,0.00022191,7]
[342086802,1731426500712,-332.93812947,0.00022191,2]
[342086803,1731426500727,-500.0,0.00022191,2]
[342086804,1731426500738,-613.26,0.00022191,2]
[342086805,1731426500749,-500.0,0.00022191,2]
[342086806,1731426500760,-500.0,0.00022191,2]
[342086807,1731426500772,-500.0,0.00022191,2]
[342086808,1731426500784,-7403.46,0.00022191,2]
[342086809,1731426500795,-500.0,0.00022191,2]
[342086810,1731426500808,-500.0,0.00022191,2]
[342086811,1731426500819,-500.0,0.00022191,2]
[342086812,1731426500831,-500.0,0.00022191,2]
[342086813,1731426500905,-1285.4,0.00022191,2]
[342086814,1731426500941,-500.0,0.00022191,2]
[342086815,1731426500952,-500.0,0.00022191,2]
[342086816,1731426500963,-500.0,0.00022191,2]
[342086817,1731426500979,-502.97266227,0.00022191,2]
[342086818,1731426500990,-66.61920826,0.00022191,2]
[342086819,1731426500999,-500.0,0.00022191,2]
[342086820,1731426501008,-433.38079174,0.00022191,2]
[342086821,1731426501019,-66.61920826,0.00022191,2]
[342086822,1731426501029,-188.08225889,0.00022191,2]
[342086823,1731426501040,-311.91774111,0.00022191,2]
[342086824,1731426501049,-188.08225889,0.00022191,2]
[342086825,1731426501060,-311.91774111,0.00022191,2]
[342086826,1731426501069,-218.42225889,0.00022191,2]
[342086827,1731426501150,-281.57774111,0.00022191,2]
[342086828,1731426501160,-218.42225889,0.00022191,2]
[342086829,1731426501172,-281.57774111,0.00022191,2]
[342086830,1731426501182,-218.42225889,0.00022191,2]
[342086831,1731426501193,-281.57774111,0.00022191,2]
[342086832,1731426501202,-218.42225889,0.00022191,2]
[342086833,1731426501213,-281.57774111,0.00022191,2]
[342086834,1731426501222,-218.42225889,0.00022191,2]
[342086835,1731426501234,-500.0,0.00022191,2]
[342086836,1731426501245,-500.0,0.00022191,2]
[342086837,1731426501256,-60.55774111,0.00022191,2]
[342086838,1731426501265,-439.44225889,0.00022191,2]
[342086839,1731426501280,-60.55774111,0.00022191,2]
[342086840,1731426501289,-439.44225889,0.00022191,2]
[342086841,1731426501300,-60.55774111,0.00022191,2]
[342086842,1731426501310,-500.0,0.00022191,2]
[342086843,1731426501319,-500.0,0.00022191,2]
[342086844,1731426501328,-1370.31,0.00022191,2]
[342086845,1731426501337,-500.0,0.00022191,2]
[342086846,1731426501350,-500.0,0.00022191,2]
[342086847,1731426501359,-1075.45,0.00022191,2]
[342086848,1731426501369,-500.0,0.00022191,2]
[342086849,1731426501378,-504.56,0.00022191,2]
[342086850,1731426501387,-168.28225889,0.00022191,2]
[342086851,1731426501398,-331.71774111,0.00022191,2]
[342086852,1731426501407,-168.28225889,0.00022191,2]
[342086853,1731426501418,-369.63774111,0.00022191,2]
[342086854,1731426501428,-130.36225889,0.00022191,2]
[342086855,1731426501439,-369.63774111,0.00022191,2]
[342086856,1731426501448,-130.36225889,0.00022191,2]
[342086857,1731426501459,-369.63774111,0.00022191,2]
[342086858,1731426501469,-130.36225889,0.00022191,2]
[342086859,1731426501480,-369.63774111,0.00022191,2]
[342086860,1731426501490,-130.36225889,0.00022191,7]
[342086861,1731426501501,-20.63774111,0.00022191,7]
[342086862,1731426501510,-196.540752,0.00022191,7]
[342086863,1731426501519,-151.0,0.00022191,7]
[342086864,1731426501529,-85.70499337,0.00022191,7]
[342086865,1731426501540,-65.29500663,0.00022191,7]
[342086866,1731426501549,-90.22300591,0.00022191,2]
[342086867,1731426501561,-409.77699409,0.00022191,2]
[342086868,1731426501570,-90.22300591,0.00022191,2]
[342086869,1731426501581,-500.0,0.00022191,2]
[342086870,1731426501601,-177.50699409,0.00022191,2]
[342086871,1731426501611,-151.0,0.00022191,7]
[342086872,1731426501620,-171.49300591,0.00022191,2]
[342086873,1731426501630,-500.0,0.00022191,2]
[342086874,1731426501642,-108.24699409,0.00022191,2]
[342086875,1731426501651,-151.0,0.00022191,7]
[342086876,1731426501660,-240.75300591,0.00022191,2]
[342086877,1731426501673,-259.24699409,0.00022191,2]
[342086878,1731426501687,-240.75300591,0.00022191,2]
[342086879,1731426501702,-500.0,0.00021917,2]
[342086880,1731426501714,-500.0,0.00022191,2]
[342086881,1731426501727,-500.0,0.00022191,2]
[342086882,1731426501738,-500.0,0.00022191,2]
[342086883,1731426501750,-500.0,0.00022191,2]
[342086884,1731426501761,-95.24699409,0.00022191,2]
[342086885,1731426501770,-151.0,0.00022191,7]
[342086886,1731426501779,-253.75300591,0.00022191,2]
[342086887,1731426501795,-246.24699409,0.00022191,2]
[342086888,1731426501804,-153.37060009,0.00022191,2]
[342086889,1731426501814,-100.38240582,0.00022191,7]
[342086890,1731426501827,-50.61759418,0.00022191,7]
[342086891,1731426501837,-182.99928,0.00022191,7]
[342086892,1731426501850,-211.0,0.00022192,2]
[342086893,1731426501859,-55.38312582,0.00022193,2]
[342086894,1731426501870,-94.61687418,0.00022193,2]
[342086895,1731426501879,-405.38312582,0.00022193,2]
[342086896,1731426501891,-500.0,0.00022193,2]
[342086897,1731426501902,-215.61687418,0.00022193,2]
[342086898,1731426501912,-530.0,0.00022193,2]
[342086899,1731426501921,-29.72312582,0.00022193,2]
[342086900,1731426501932,-500.0,0.00022193,2]
[342086901,1731426501944,-1860.27687418,0.00022193,2]
[342086902,1731426501954,-151.0,0.00022262,7]
[342086903,1731426501963,-151.0,0.00022262,7]
[342086904,1731426501973,-151.0,0.00022262,7]
[342086905,1731426501983,-151.0,0.00022262,7]
[342086906,1731426501992,-151.0,0.00022262,7]
[342086907,1731426502001,-151.0,0.00022262,7]
[342086908,1731426502011,-220.508638,0.00022262,2]
[342086909,1731426502020,-60.72448782,0.00022365,2]
[342086910,1731426502031,-386.85874464,0.00022365,2]
[342086911,1731426502041,-122.42500693,0.000224,10]
[342086912,1731426502052,-177.57499307,0.000224,10]
[342086913,1731426502061,-327.99888389,0.00022465,2]
[342086914,1731426502072,-172.00111611,0.00022465,2]
[342086915,1731426502081,-327.99888389,0.00022465,2]
[342086916,1731426502094,-201.57894778,0.00022465,2]
[342086917,1731426502103,-298.42105222,0.00022465,2]
[342086918,1731426502118,-201.57894778,0.00022465,2]
[342086919,1731426502127,-298.42105222,0.00022465,2]
[342086920,1731426502138,-201.57894778,0.00022465,2]
[342086921,1731426502147,-298.42105222,0.00022465,2]
[342086922,1731426502158,-201.57894778,0.00022465,2]
[342086923,1731426502167,-280.31021056,0.00022465,2]
[342086932,1731426571020,-1169.27083333,0.00020215,2]
[342086933,1731426571048,-256.9049615,0.00021374,2]
[342086934,1731426571076,-300.0,0.00021916,2]
[342086935,1731426571103,-343.06803304,0.00021917,2]
[342086936,1731426571131,-500.0,0.00021917,2]
[342086937,1731426571162,-500.0,0.00021917,2]
[342086938,1731426571190,-620.71,0.00021917,2]
[342086939,1731426571235,-511.0,0.00021917,2]
[342086940,1731426571266,-500.0,0.00021917,2]
[342086941,1731426571295,-4178.54,0.00021917,2]
[342086942,1731426571323,-2185.9,0.00021917,2]
[342086943,1731426571353,-500.0,0.00021917,2]
[342086944,1731426571382,-500.0,0.00021917,2]
[342086945,1731426571413,-500.0,0.00021917,2]
[342086946,1731426571442,-500.0,0.00021917,2]
[342086947,1731426571471,-1163.71,0.00021917,2]
[342086948,1731426571501,-500.0,0.00021917,2]
[342086949,1731426571531,-500.0,0.00021917,2]
[342086950,1731426571560,-500.0,0.00021917,2]
[342086951,1731426571589,-1175.62,0.00021917,2]
[342086952,1731426571617,-500.0,0.00021917,2]
[342086953,1731426571649,-5176.44,0.00021917,2]
[342086954,1731426571678,-637.08,0.00021917,2]
[342086955,1731426571711,-500.0,0.00021917,2]
[342086956,1731426571739,-500.0,0.00021917,2]
[342086957,1731426571769,-500.0,0.00021917,2]
[342086958,1731426571797,-500.0,0.00021917,2]
[342086959,1731426571826,-645.49,0.00021917,2]
[342086960,1731426571855,-500.0,0.00021917,2]
[342086961,1731426571883,-500.0,0.00021917,2]
[342086962,1731426571914,-500.0,0.00021917,2]
[342086963,1731426571943,-500.0,0.00021917,2]
[342086964,1731426571972,-500.0,0.00021917,2]
[342086965,1731426572001,-529.63,0.00021917,2]
[342086966,1731426572031,-1335.55,0.00021917,2]
[342086967,1731426572061,-1228.78,0.00021917,2]
[342086968,1731426572088,-500.0,0.00021917,2]
[342086969,1731426572116,-167.0,0.00022,2]
[342086970,1731426572143,-500.0,0.00022173,2]
[342086971,1731426572179,-500.0,0.00022191,2]
[342086972,1731426572208,-500.0,0.00022191,2]
[342086973,1731426572237,-620.71,0.00022191,2]
[342086974,1731426572269,-511.0,0.00022191,2]
[342086975,1731426572299,-500.0,0.00022191,2]
[342086976,1731426572326,-4178.54,0.00022191,2]
[342086977,1731426572354,-2185.9,0.00022191,2]
[342086978,1731426572381,-500.0,0.00022191,2]
[342086979,1731426572412,-500.0,0.00022191,2]
[342086980,1731426572440,-500.0,0.00022191,2]
[342086981,1731426572605,-500.0,0.00022191,2]
[342086982,1731426572634,-1163.71,0.00022191,2]
[342086983,1731426572657,-151.0,0.00022191,7]
[342086984,1731426572666,-500.0,0.00022191,2]
[342086985,1731426572675,-500.0,0.00022191,2]
[342086986,1731426572684,-18.27083333,0.00022191,2]
[342086987,1731426572700,-256.9049615,0.00022191,2]
[342086988,1731426572713,-300.0,0.00022191,2]
[342086989,1731426572729,-343.06803304,0.00022191,2]
[342086990,1731426572741,-257.37617213,0.00022191,2]
[342086991,1731426572750,-242.62382787,0.00022191,2]
[342086992,1731426572761,-257.37617213,0.00022191,2]
[342086993,1731426572773,-242.62382787,0.00022191,2]
[342086994,1731426572788,-620.71,0.00022191,2]
[342086995,1731426572799,-511.0,0.00022191,2]
[342086996,1731426572815,-500.0,0.00022191,2]
[342086997,1731426572830,-3302.10617213,0.00022191,2]
[342086998,1731426572840,-637.08,0.00022191,2]
[342086999,1731426572849,-239.35382787,0.00022191,2]
[342087000,1731426572862,-260.64617213,0.00022191,2]
[342087001,1731426572871,-272.09453758,0.00022191,2]
[342087002,1731426572881,-500.0,0.00022191,2]
[342087003,1731426572890,-645.49,0.00022191,2]
[342087004,1731426572904,-500.0,0.00022191,2]
[342087005,1731426572914,-7.66929029,0.00022191,2]
[342087006,1731426572926,-492.33070971,0.00022191,2]
[342087007,1731426572936,-7.66929029,0.00022191,2]
[342087008,1731426572947,-500.0,0.00022191,2]
[342087009,1731426572959,-21.96070971,0.00022191,2]
[342087010,1731426572968,-478.03929029,0.00022191,2]
[342087011,1731426572979,-500.0,0.00022191,2]
[342087012,1731426572994,-357.51070971,0.00022191,2]
[342087013,1731426573003,-199.312119,0.00022191,7]
[342087014,1731426573013,-199.312119,0.00022191,7]
[342087015,1731426573022,-407.57505229,0.00022191,2]
[342087016,1731426573042,-500.0,0.00022191,2]
[342087017,1731426573056,-321.20494771,0.00022191,2]
[342087018,1731426573066,-178.79505229,0.00022191,2]
[342087019,1731426573077,-102.1899497,0.00022191,2]
[342087020,1731426573087,-199.312119,0.00022191,7]
[342087021,1731426573096,-198.4979313,0.00022191,7]
[342087022,1731426573112,-0.8141877,0.00022191,7]
[342087023,1731426573122,-363.03878834,0.00022365,2]
[342087024,1731426573132,-500.0,0.00022465,2]
[342087025,1731426573141,-311.76702396,0.00022465,2]
[342087026,1731426573159,-188.23297604,0.00022465,2]
[342087027,1731426573168,-311.76702396,0.00022465,2]
[342087028,1731426573180,-202.13585134,0.00022465,2]
[342087029,1731426573190,-500.0,0.00022465,2]
[342087030,1731426573199,-500.0,0.00022465,2]
[342087031,1731426573209,-500.0,0.00022465,2]
[342087032,1731426573219,-500.0,0.00022465,2]
[342087033,1731426573228,-500.0,0.00022465,2]
[342087034,1731426573238,-500.0,0.00022465,2]
[342087035,1731426573247,-500.0,0.00022465,2]
[342087036,1731426573256,-500.0,0.00022465,2]
[342087037,1731426573266,-500.0,0.00022465,2]
[342087038,1731426573275,-474.30414866,0.00022465,2]
[342087039,1731426573287,-25.69585134,0.00022465,2]
[342087040,1731426573297,-500.0,0.00022465,2]
[342087041,1731426573307,-111.38414866,0.00022465,2]
[342087042,1731426573319,-388.61585134,0.00022465,2]
[342087043,1731426573328,-111.38414866,0.00022465,2]
[342087044,1731426573340,-388.61585134,0.00022465,2]
[342087045,1731426573350,-111.38414866,0.00022465,2]
[342087046,1731426573366,-388.61585134,0.00022465,2]
[342087047,1731426573376,-111.38414866,0.00022465,2]
[342087048,1731426573388,-388.61585134,0.00022465,2]
[342087049,1731426573400,-111.38414866,0.00022465,2]
[342087050,1731426573413,-388.61585134,0.00022465,2]
[342087051,1731426573423,-256.87414866,0.00022465,2]
[342087052,1731426573434,-243.12585134,0.00022465,2]
[342087053,1731426573444,-256.87414866,0.00022465,2]
[342087054,1731426573456,-94.07458484,0.00022465,2]
[342087055,1731426573465,-405.92541516,0.00022465,2]
[342087056,1731426573476,-94.07458484,0.00022465,2]
[342087057,1731426573486,-405.92541516,0.00022465,2]
[342087058,1731426573498,-94.07458484,0.00022465,2]
[342087059,1731426573507,-405.92541516,0.00022465,2]
[342087060,1731426573519,-94.07458484,0.00022465,2]
[342087061,1731426573528,-405.92541516,0.00022465,2]
[342087062,1731426573540,-94.07458484,0.00022465,2]
[342087063,1731426573549,-435.55541516,0.00022465,2]
[342087064,1731426573561,-66.21924608,0.00022465,2]
[342087065,1731426573570,-500.0,0.00022465,2]
[342087066,1731426573579,-547.45815767,0.00022465,2]
[342087067,1731426573598,-221.87259625,0.00022465,2]
[342087068,1731426573614,-278.12740375,0.00022465,2]
[342087069,1731426573624,-500.0,0.00022465,2]
[342087070,1731426573634,-450.65259625,0.00022465,2]
[342087071,1731426573655,-49.34740375,0.00022465,2]
[342087072,1731426573664,-450.65259625,0.00022465,2]
[342087073,1731426573677,-49.34740375,0.00022465,2]
[342087074,1731426573687,-117.65259625,0.00022465,2]
[342087075,1731426573709,-382.34740375,0.00022465,2]
[342087076,1731426573719,-117.65259625,0.00022465,2]
[342087077,1731426573732,-382.34740375,0.00022465,2]
[342087078,1731426573743,-117.65259625,0.00022465,2]
[342087079,1731426573755,-382.34740375,0.00022465,2]
[342087080,1731426573765,-117.65259625,0.00022465,2]
[342087081,1731426573779,-382.34740375,0.00022465,2]
[342087082,1731426573788,-238.36259625,0.00022465,2]
[342087083,1731426573801,-261.63740375,0.00022465,2]
[342087084,1731426573810,-249.36259625,0.00022465,2]
[342087085,1731426573822,-250.63740375,0.00022465,2]
[342087086,1731426573832,-249.36259625,0.00022465,2]
[342087087,1731426573844,-250.63740375,0.00022465,2]
[342087088,1731426573854,-500.0,0.00022465,2]
[342087089,1731426573864,-500.0,0.00022465,8]
[342087090,1731426573874,-500.0,0.00022465,2]
[342087091,1731426573884,-151.0,0.00022465,7]
[342087092,1731426573896,-500.0,0.00022465,2]
[342087093,1731426573906,-500.0,0.00022465,2]
[342087094,1731426573916,-500.0,0.00022465,2]
[342087095,1731426573927,-500.0,0.00022465,2]
[342087096,1731426573937,-276.90259625,0.00022465,2]
[342087097,1731426573949,-223.09740375,0.00022465,2]
[342087098,1731426573959,-500.0,0.00022465,2]
[342087099,1731426573969,-500.0,0.00022465,2]
[342087100,1731426573979,-962.80259625,0.00022465,2]
[342087101,1731426573997,-352.85740375,0.00022465,2]
[342087102,1731426574007,-147.14259625,0.00022465,2]
[342087103,1731426574019,-352.85740375,0.00022465,2]
[342087104,1731426574030,-147.14259625,0.00022465,2]
[342087105,1731426574042,-352.85740375,0.00022465,2]
[342087106,1731426574052,-147.14259625,0.00022465,2]
[342087107,1731426574064,-352.85740375,0.00022465,2]
[342087108,1731426574074,-147.14259625,0.00022465,2]
[342087109,1731426574095,-352.85740375,0.00022465,2]
[342087110,1731426574105,-500.0,0.00022465,2]
[342087111,1731426574115,-310.85259625,0.00022465,2]
[342087112,1731426574126,-1.89234426,0.00022465,2]
[342087149,1731426631859,-1169.27083333,0.00020215,2]
[342087151,1731426631869,-174.3504381,0.00021817,2]
[342087152,1731426631880,-825.6495619,0.00021817,2]
[342087153,1731426631890,-67.03584308,0.00021916,2]
[342087309,1731426639852,-232.96415692,0.00021916,2]
[342087311,1731426639863,-595.23,0.00021917,2]
[342087312,1731426639872,-515.81,0.00021917,2]
[342087313,1731426639881,-500.0,0.00021917,2]
[342087314,1731426639890,-6943.59,0.00021917,2]
[342087315,1731426639900,-1311.14,0.00021917,2]
[342087316,1731426639909,-500.0,0.00021917,2]
[342087317,1731426639918,-151.46442987,0.00021917,2]
[342087318,1731426639927,-455.09859796,0.00021917,2]
[342087319,1731426639936,-500.0,0.00021917,2]
[342087320,1731426639945,-493.11228825,0.00021917,2]
[342087321,1731426639957,-5914.96,0.00021917,2]
[342087322,1731426639966,-536.8858532,0.00021917,2]
[342087323,1731426639975,-784.25,0.00021917,2]
[342087324,1731426639985,-187.25505949,0.00021917,2]
[342087325,1731426639994,-500.0,0.00021917,2]
[342087326,1731426640003,-200.0,0.00021917,2]
[342087327,1731426640012,-500.0,0.00021917,2]
[342087328,1731426640023,-500.0,0.00021917,2]
[342087329,1731426640032,-500.0,0.00021917,2]
[342087330,1731426640041,-500.0,0.00021917,2]
[342087331,1731426640050,-500.0,0.00021917,2]
[342087332,1731426640059,-16535.72,0.00021917,2]
[342087333,1731426640068,-500.0,0.00021917,2]
[342087334,1731426640077,-500.0,0.00021917,2]
[342087335,1731426640087,-151.0,0.00022191,7]
[342087336,1731426640096,-151.0,0.00022191,7]
[342087337,1731426640105,-595.23,0.00022191,2]
[342087338,1731426640114,-515.81,0.00022191,2]
[342087339,1731426640123,-500.0,0.00022191,2]
[342087340,1731426640133,-6943.59,0.00022191,2]
[342087341,1731426640142,-1311.14,0.00022191,2]
[342087342,1731426640152,-500.0,0.00022191,2]
[342087343,1731426640161,-5914.96,0.00022191,2]
[342087344,1731426640170,-784.25,0.00022191,2]
[342087345,1731426640180,-208.91498446,0.00022191,2]
[342087346,1731426640190,-406.33851546,0.00022191,2]
[342087347,1731426640199,-500.0,0.00022191,2]
[342087348,1731426640211,-500.0,0.00022191,2]
[342087349,1731426640220,-500.0,0.00022191,2]
[342087350,1731426640229,-500.0,0.00022191,2]
[342087351,1731426640238,-500.0,0.00022191,2]
[342087352,1731426640247,-5191.00262905,0.00022191,2]
[342087353,1731426640394,-11344.71737095,0.00022191,2]
[342087354,1731426640403,-500.0,0.00022191,2]
[342087355,1731426640412,-500.0,0.00022191,2]
[342087356,1731426640421,-174.946,0.00022193,2]
[342087357,1731426640430,-272.56043328,0.00022465,2]
[342087358,1731426640440,-500.0,0.00022465,2]
[342087359,1731426640449,-500.0,0.00022465,2]
[342087360,1731426640462,-151.0,0.00022465,7]
[342087361,1731426640471,-500.0,0.00022465,2]
[342087362,1731426640480,-500.0,0.00022465,2]
[342087363,1731426640489,-500.0,0.00022465,2]
[342087364,1731426640499,-500.0,0.00022465,2]
[342087365,1731426640508,-501.81,0.00022465,2]
[342087366,1731426640517,-500.0,0.00022465,2]
[342087367,1731426640526,-500.0,0.00022465,2]
[342087368,1731426640535,-540.04,0.00022465,2]
[342087369,1731426640544,-500.0,0.00022465,2]
[342087370,1731426640553,-576.84681011,0.00022465,2]
[342087371,1731426640562,-715.45,0.00022465,2]
[342087372,1731426640571,-500.0,0.00022465,2]
[342087373,1731426640580,-500.0,0.00022465,2]
[342087374,1731426640589,-500.0,0.00022465,2]
[342087375,1731426640599,-500.0,0.00022465,2]
[342087376,1731426640608,-500.0,0.00022465,2]
[342087377,1731426640617,-500.0,0.00022465,2]
[342087378,1731426640626,-500.0,0.00022465,2]
[342087379,1731426640635,-500.0,0.00022465,2]
[342087380,1731426640645,-500.0,0.00022465,2]
[342087381,1731426640654,-500.0,0.00022465,2]
[342087382,1731426640663,-500.0,0.00022465,2]
[342087383,1731426640672,-500.0,0.00022465,2]
[342087384,1731426640682,-151.0,0.00022465,7]
[342087385,1731426640691,-992.53,0.00022465,2]
[342087386,1731426640700,-151.0,0.00022465,7]
[342087387,1731426640712,-151.0,0.00022465,7]
[342087388,1731426640721,-500.0,0.00022465,2]
[342087389,1731426640734,-500.0,0.00022465,2]
[342087390,1731426640743,-706.06,0.00022465,2]
[342087391,1731426640752,-500.0,0.00022465,2]
[342087392,1731426640763,-500.0,0.00022465,2]
[342087393,1731426640772,-500.0,0.00022465,2]
[342087394,1731426640781,-500.0,0.00022465,2]
[342087395,1731426640791,-500.0,0.00022465,2]
[342087396,1731426640800,-500.0,0.00022465,2]
[342087397,1731426640811,-500.0,0.00022465,2]
[342087398,1731426640820,-500.0,0.00022465,2]
[342087399,1731426640829,-151.0,0.00022465,7]
[342087400,1731426640839,-500.0,0.00022465,2]
[342087401,1731426640848,-500.0,0.00022465,2]
[342087402,1731426640858,-557.99,0.00022465,2]
[342087403,1731426640867,-500.0,0.00022465,2]
[342087404,1731426640876,-529.21307219,0.00022465,2]
[342087405,1731426640886,-530.34,0.00022465,2]
[342087406,1731426640895,-500.0,0.00022465,2]
[342087407,1731426640904,-500.0,0.00022465,2]
[342087408,1731426640913,-500.0,0.00022465,2]
[342087409,1731426640922,-500.0,0.00022465,2]
[342087410,1731426640931,-533.68,0.00022465,2]
[342087411,1731426640941,-500.0,0.00022465,2]
[342087412,1731426640950,-500.0,0.00022465,2]
[342087413,1731426640961,-500.0,0.00022465,2]
[342087414,1731426640970,-505.29120413,0.00022465,2]
[342087415,1731426640979,-500.0,0.00022465,2]
[342087416,1731426640988,-3047.51,0.00022465,2]
[342087417,1731426640997,-500.0,0.00022465,2]
[342087418,1731426641006,-535.19090583,0.00022465,2]
[342087419,1731426641015,-500.0,0.00022465,2]
[342087420,1731426641025,-151.0,0.00022465,7]
[342087421,1731426641034,-500.0,0.00022465,2]
[342087422,1731426641043,-500.0,0.00022465,2]
[342087423,1731426641052,-500.0,0.00022465,2]
[342087424,1731426641061,-500.0,0.00022465,2]
[342087425,1731426641070,-244.66255451,0.00022465,2]
[342087426,1731426641079,-500.0,0.00022465,2]
[342087427,1731426641088,-500.0,0.00022465,2]
[342087428,1731426641097,-1278.98,0.00022465,2]
[342087429,1731426641106,-171.86,0.00022465,2]
[342087430,1731426641116,-500.0,0.00022465,2]
[342087431,1731426641125,-500.0,0.00022465,2]
[342087432,1731426641134,-500.0,0.00022465,2]
[342087433,1731426641143,-1370.31,0.00022465,2]
[342087434,1731426641152,-500.0,0.00022465,2]
[342087435,1731426641161,-500.0,0.00022465,2]
[342087436,1731426641170,-1075.45,0.00022465,2]
[342087437,1731426641179,-500.0,0.00022465,2]
[342087438,1731426641188,-504.56,0.00022465,2]
[342087439,1731426641197,-500.0,0.00022465,2]
[342087440,1731426641209,-537.92,0.00022465,2]
[342087441,1731426641221,-500.0,0.00022465,2]
[342087442,1731426641230,-422.56085758,0.00022465,2]
[342087443,1731426641242,-151.0,0.00022465,7]
[342087444,1731426641251,-767.73,0.00022465,2]
[342087445,1731426641260,-779.74,0.00022465,2]
[342087446,1731426641269,-151.0,0.00022465,7]
[342087447,1731426641278,-151.0,0.00022465,7]
[342087448,1731426641287,-500.0,0.00022465,2]
[342087449,1731426641296,-151.0,0.00022465,7]
[342087450,1731426641305,-500.0,0.00022465,2]
[342087451,1731426641315,-500.0,0.00022465,2]
[342087452,1731426641323,-620.71,0.00022465,2]
[342087453,1731426641332,-511.0,0.00022465,2]
[342087454,1731426641341,-500.0,0.00022465,2]
[342087455,1731426641350,-4178.54,0.00022465,2]
[342087456,1731426641360,-2185.9,0.00022465,2]
[342087457,1731426641369,-500.0,0.00022465,2]
[342087458,1731426641378,-500.0,0.00022465,2]
[342087459,1731426641387,-500.0,0.00022465,2]
[342087460,1731426641396,-500.0,0.00022465,2]
[342087461,1731426641405,-1163.71,0.00022465,2]
[342087462,1731426641414,-500.0,0.00022465,2]
[342087463,1731426641423,-1175.62,0.00022465,2]
[342087464,1731426641433,-500.0,0.00022465,2]
[342087465,1731426641442,-5176.44,0.00022465,2]
[342087466,1731426641451,-637.08,0.00022465,2]
[342087467,1731426641464,-500.0,0.00022465,2]
[342087468,1731426641473,-500.0,0.00022465,2]
[342087469,1731426641482,-645.49,0.00022465,2]
[342087470,1731426641491,-500.0,0.00022465,2]
[342087471,1731426641499,-500.0,0.00022465,2]
[342087472,1731426641509,-529.63,0.00022465,2]
[342087473,1731426641518,-1335.55,0.00022465,2]
[342087474,1731426641527,-199.312119,0.00022465,7]
[342087475,1731426641536,-199.312119,0.00022465,7]
[342087476,1731426641546,-1228.78,0.00022465,2]
[342087477,1731426641555,-199.312119,0.00022465,7]
[342087478,1731426641564,-199.312119,0.00022465,7]
[342087479,1731426641574,-151.0,0.00022465,7]
[342087480,1731426641583,-246.618976,0.00022465,7]
[342087481,1731426641677,-595.23,0.00022465,2]
[342087482,1731426641688,-515.81,0.00022465,2]
[342087483,1731426641697,-500.0,0.00022465,2]
[342087484,1731426641711,-6943.59,0.00022465,2]
[342087485,1731426641720,-1311.14,0.00022465,2]
[342087486,1731426641733,-548.2,0.00022465,2]
[342087487,1731426641742,-5914.96,0.00022465,2]
[342087488,1731426641752,-784.25,0.00022465,2]
[342087489,1731426641763,-500.0,0.00022465,2]
[342087490,1731426641772,-500.0,0.00022465,2]
[342087491,1731426641781,-500.0,0.00022465,2]
[342087492,1731426641790,-500.0,0.00022465,2]
[342087493,1731426641800,-500.0,0.00022465,2]
[342087494,1731426641810,-16535.72,0.00022465,2]
[342087495,1731426641819,-500.0,0.00022465,2]
[342087496,1731426641828,-500.0,0.00022465,2]
[342087497,1731426641837,-162.16837789,0.00022473,2]
[342087498,1731426641846,-500.0,0.00022473,2]
[342087499,1731426641855,-300.0,0.00022473,2]